[Event "Titled Tuesday Blitz May 9 Late 2023"]
[White "Kavutskiy, Konstantin"]
[Black "Kobo, Ori"]
[WhiteFideId "2026384"]
[BlackFideId "2812320"]
[WhiteElo "2323"]
[BlackElo "2454"]
[Result "0-1"]
[Round "10"]
[TimeControl "180+2"]
[Date "2023.05.09"]
[WhiteClock "0:00:00"]
[BlackClock "0:00:09"]

1. d4 {[%clk 0:03:00]}  d5 {[%clk 0:02:59]} 2. c4 {[%clk 0:03:00]}  e6 {[%clk 0:02:59]} 3. Nf3 {[%clk 0:02:59]}  Nf6 {[%clk 0:03:00]} 4. Nc3 {[%clk 0:02:59]}  Nbd7 {[%clk 0:03:00]} 5. cxd5 {[%clk 0:02:58]}  exd5 {[%clk 0:03:01]} 6. Bf4 {[%clk 0:02:58]}  c6 {[%clk 0:03:01]} 7. h3 {[%clk 0:02:57]}  Ne4 {[%clk 0:02:59]} 8. Qc2 {[%clk 0:02:51]}  Bb4 {[%clk 0:02:57]} 9. e3 {[%clk 0:02:46]}  Qa5 {[%clk 0:02:36]} 10. Nd2 {[%clk 0:02:31]}  Nxc3 {[%clk 0:02:32]} 11. bxc3 {[%clk 0:02:30]}  Bxc3 {[%clk 0:02:30]} 12. Rc1 {[%clk 0:02:30]}  Bb4 {[%clk 0:02:29]} 13. Bd3 {[%clk 0:02:26]}  h6 {[%clk 0:02:17]} 14. Ke2 {[%clk 0:02:25]}  O-O {[%clk 0:02:11]} 15. Nf3 {[%clk 0:02:19]}  Re8 {[%clk 0:02:08]} 16. Rb1 {[%clk 0:02:15]}  Bf8 {[%clk 0:01:55]} 17. g4 {[%clk 0:02:06]}  Nf6 {[%clk 0:01:32]} 18. Ne5 {[%clk 0:02:04]}  Ne4 {[%clk 0:01:22]} 19. Rb3 {[%clk 0:01:41]}  Be6 {[%clk 0:01:18]} 20. f3 {[%clk 0:01:35]}  Nd6 {[%clk 0:01:18]} 21. g5 {[%clk 0:01:23]}  h5 {[%clk 0:01:12]} 22. g6 {[%clk 0:01:21]}  f6 {[%clk 0:01:12]} 23. Nf7 {[%clk 0:00:50]}  Nxf7 {[%clk 0:01:07]} 24. gxf7+ {[%clk 0:00:50]}  Bxf7 {[%clk 0:01:08]} 25. Rxb7 {[%clk 0:00:43]}  Re7 {[%clk 0:01:06]} 26. Rhb1 {[%clk 0:00:40]}  Rae8 {[%clk 0:01:02]} 27. Rxe7 {[%clk 0:00:38]}  Bxe7 {[%clk 0:00:58]} 28. Rb7 {[%clk 0:00:33]}  Kf8 {[%clk 0:00:49]} 29. Kf1 {[%clk 0:00:27]}  Be6 {[%clk 0:00:44]} 30. Bc7 {[%clk 0:00:25]}  Bxh3+ {[%clk 0:00:40]} 31. Kf2 {[%clk 0:00:26]}  Qa3 {[%clk 0:00:33]} 32. Rb3 {[%clk 0:00:25]}  Qa4 {[%clk 0:00:33]} 33. Kg3 {[%clk 0:00:20]}  Bd7 {[%clk 0:00:29]} 34. Bg6 {[%clk 0:00:19]}  Rc8 {[%clk 0:00:28]} 35. Bf4 {[%clk 0:00:19]}  Qa5 {[%clk 0:00:23]} 36. Kf2 {[%clk 0:00:16]}  h4 {[%clk 0:00:22]} 37. Bf5 {[%clk 0:00:15]}  Qd8 {[%clk 0:00:21]} 38. Bxd7 {[%clk 0:00:14]}  Qxd7 {[%clk 0:00:21]} 39. Qh7 {[%clk 0:00:14]}  Kf7 {[%clk 0:00:18]} 40. Qxh4 {[%clk 0:00:11]}  c5 {[%clk 0:00:12]} 41. Rc3 {[%clk 0:00:05]}  c4 {[%clk 0:00:12]} 42. Rc1 {[%clk 0:00:05]}  Qf5 {[%clk 0:00:10]} 43. Rg1 {[%clk 0:00:04]}  Rg8 {[%clk 0:00:10]} 44. Kg3 {[%clk 0:00:04]}  g5 {[%clk 0:00:09]} 45. Qh5+ {[%clk 0:00:05]}  Ke6 {[%clk 0:00:10]} 46. Bc7 {[%clk 0:00:04]}  Rc8 {[%clk 0:00:10]} 47. Qh8 {[%clk 0:00:00]}  Rxh8 {[%clk 0:00:09]} 0-1


[Site "https://www.chess.com"]

[Event "Titled Tuesday Blitz May 9 Late 2023"]
[White "Santos Flores, Alberto"]
[Black "Rorrer, Grayson"]
[WhiteFideId "3601234"]
[BlackFideId "30944996"]
[WhiteElo "2235"]
[BlackElo "2200"]
[Result "1-0"]
[Round "10"]
[TimeControl "180+2"]
[Date "2023.05.09"]
[WhiteClock "0:02:47"]
[BlackClock "0:01:57"]

1. d4 {[%clk 0:03:00]}  g6 {[%clk 0:02:55]} 2. e4 {[%clk 0:02:59]}  Bg7 {[%clk 0:02:56]} 3. Nf3 {[%clk 0:02:59]}  d6 {[%clk 0:02:54]} 4. Nc3 {[%clk 0:02:58]}  Nd7 {[%clk 0:02:54]} 5. Be3 {[%clk 0:02:55]}  e6 {[%clk 0:02:55]} 6. Qd2 {[%clk 0:02:55]}  Ne7 {[%clk 0:02:56]} 7. Bh6 {[%clk 0:02:54]}  O-O {[%clk 0:02:53]} 8. h4 {[%clk 0:02:52]}  Nf6 {[%clk 0:02:41]} 9. h5 {[%clk 0:02:52]}  Nxh5 {[%clk 0:02:41]} 10. g4 {[%clk 0:02:47]}  Nf6 {[%clk 0:02:41]} 11. Bxg7 {[%clk 0:02:47]}  Kxg7 {[%clk 0:02:41]} 12. Qh6+ {[%clk 0:02:47]}  Kg8 {[%clk 0:02:03]} 13. e5 {[%clk 0:02:47]}  dxe5 {[%clk 0:01:57]} 14. dxe5 {[%clk 0:02:47]} 1-0


[Site "https://www.chess.com"]

[Event "Titled Tuesday Blitz May 9 Late 2023"]
[White "Amburgy, Ryan"]
[Black "Remolar Gallen, Jose"]
[WhiteFideId "30924820"]
[BlackFideId "2215187"]
[WhiteElo "2134"]
[BlackElo "2223"]
[Result "1/2-1/2"]
[Round "10"]
[TimeControl "180+2"]
[Date "2023.05.09"]
[WhiteClock "0:01:06"]
[BlackClock "0:00:17"]

1. Nf3 {[%clk 0:03:00]}  Nf6 {[%clk 0:02:59]} 2. c4 {[%clk 0:03:01]}  g6 {[%clk 0:02:59]} 3. Nc3 {[%clk 0:03:01]}  Bg7 {[%clk 0:03:00]} 4. e4 {[%clk 0:03:02]}  d6 {[%clk 0:03:00]} 5. d4 {[%clk 0:03:02]}  O-O {[%clk 0:03:01]} 6. Be2 {[%clk 0:03:03]}  e5 {[%clk 0:03:01]} 7. Be3 {[%clk 0:03:04]}  Ng4 {[%clk 0:03:00]} 8. Bg5 {[%clk 0:03:04]}  f6 {[%clk 0:03:01]} 9. Bh4 {[%clk 0:03:05]}  g5 {[%clk 0:03:02]} 10. Bg3 {[%clk 0:03:06]}  Nh6 {[%clk 0:03:02]} 11. dxe5 {[%clk 0:03:06]}  dxe5 {[%clk 0:03:02]} 12. Qc2 {[%clk 0:03:07]}  c6 {[%clk 0:02:59]} 13. Nd2 {[%clk 0:03:07]}  Na6 {[%clk 0:02:58]} 14. O-O-O {[%clk 0:03:08]}  Qe7 {[%clk 0:02:52]} 15. f3 {[%clk 0:03:07]}  Be6 {[%clk 0:02:46]} 16. h3 {[%clk 0:03:04]}  Nf7 {[%clk 0:02:45]} 17. Bf2 {[%clk 0:03:04]}  Rfd8 {[%clk 0:02:40]} 18. a3 {[%clk 0:02:54]}  Bf8 {[%clk 0:02:27]} 19. Nb3 {[%clk 0:02:49]}  b6 {[%clk 0:02:11]} 20. g4 {[%clk 0:02:41]}  Rxd1+ {[%clk 0:01:27]} 21. Rxd1 {[%clk 0:02:39]}  Rd8 {[%clk 0:01:28]} 22. h4 {[%clk 0:02:25]}  h6 {[%clk 0:00:59]} 23. h5 {[%clk 0:02:22]}  Nd6 {[%clk 0:00:46]} 24. c5 {[%clk 0:02:20]}  Nxc5 {[%clk 0:00:47]} 25. Nxc5 {[%clk 0:02:20]}  bxc5 {[%clk 0:00:47]} 26. Bxc5 {[%clk 0:02:20]}  Qf7 {[%clk 0:00:48]} 27. Bxd6 {[%clk 0:01:29]}  Bxd6 {[%clk 0:00:45]} 28. Na4 {[%clk 0:01:29]}  Bb3 {[%clk 0:00:39]} 29. Qc3 {[%clk 0:01:29]}  Kg7 {[%clk 0:00:18]} 30. Nc5 {[%clk 0:01:21]}  Bxd1 {[%clk 0:00:18]} 31. Bc4 {[%clk 0:01:21]}  Qe7 {[%clk 0:00:11]} 32. Ne6+ {[%clk 0:01:22]}  Kh7 {[%clk 0:00:12]} 33. Nxd8 {[%clk 0:01:20]}  Qxd8 {[%clk 0:00:13]} 34. Kxd1 {[%clk 0:01:20]}  Bxa3+ {[%clk 0:00:11]} 35. Ke2 {[%clk 0:01:20]}  Bc5 {[%clk 0:00:08]} 36. Qb3 {[%clk 0:01:12]}  Bb6 {[%clk 0:00:05]} 37. Bf7 {[%clk 0:01:10]}  Qd7 {[%clk 0:00:04]} 38. Bg6+ {[%clk 0:01:08]}  Kg7 {[%clk 0:00:05]} 39. Qc4 {[%clk 0:01:06]}  Ba5 {[%clk 0:00:04]} 40. b4 {[%clk 0:01:06]}  Bb6 {[%clk 0:00:04]} 41. Qa2 {[%clk 0:00:58]}  Qe7 {[%clk 0:00:02]} 42. Qa6 {[%clk 0:00:58]}  Kf8 {[%clk 0:00:01]} 43. Qc8+ {[%clk 0:00:58]}  Kg7 {[%clk 0:00:02]} 44. Bf5 {[%clk 0:00:57]}  Qxb4 {[%clk 0:00:01]} 45. Qd7+ {[%clk 0:00:57]}  Kf8 {[%clk 0:00:02]} 46. Qc8+ {[%clk 0:00:52]}  Kg7 {[%clk 0:00:02]} 47. Be6 {[%clk 0:00:49]}  Qf8 {[%clk 0:00:02]} 48. Kd3 {[%clk 0:00:50]}  Qxc8 {[%clk 0:00:01]} 49. Bxc8 {[%clk 0:00:51]}  Kf8 {[%clk 0:00:01]} 50. Bd7 {[%clk 0:00:52]}  Ke7 {[%clk 0:00:02]} 51. Bxc6 {[%clk 0:00:53]}  Kd6 {[%clk 0:00:03]} 52. Bd5 {[%clk 0:00:54]}  Kc5 {[%clk 0:00:04]} 53. Kc3 {[%clk 0:00:53]}  Ba5+ {[%clk 0:00:03]} 54. Kb3 {[%clk 0:00:54]}  Be1 {[%clk 0:00:04]} 55. Ka4 {[%clk 0:00:54]}  Kd4 {[%clk 0:00:04]} 56. Be6 {[%clk 0:00:55]}  Ke3 {[%clk 0:00:04]} 57. Bf5 {[%clk 0:00:55]}  Kxf3 {[%clk 0:00:05]} 58. Kb5 {[%clk 0:00:56]}  Bf2 {[%clk 0:00:05]} 59. Ka6 {[%clk 0:00:57]}  Kf4 {[%clk 0:00:05]} 60. Kb5 {[%clk 0:00:57]}  Ke3 {[%clk 0:00:05]} 61. Ka6 {[%clk 0:00:57]}  Kd4 {[%clk 0:00:05]} 62. Kxa7 {[%clk 0:00:57]}  Kc5 {[%clk 0:00:06]} 63. Kb7 {[%clk 0:00:57]}  Kd6 {[%clk 0:00:07]} 64. Kc8 {[%clk 0:00:58]}  Ke7 {[%clk 0:00:07]} 65. Kc7 {[%clk 0:00:58]}  Be3 {[%clk 0:00:08]} 66. Kc6 {[%clk 0:00:59]}  Bf4 {[%clk 0:00:09]} 67. Kd5 {[%clk 0:00:59]}  Bg3 {[%clk 0:00:10]} 68. Kc4 {[%clk 0:01:00]}  Bh2 {[%clk 0:00:11]} 69. Kd5 {[%clk 0:01:01]}  Bg1 {[%clk 0:00:12]} 70. Kc4 {[%clk 0:01:02]}  Bf2 {[%clk 0:00:12]} 71. Kd5 {[%clk 0:01:02]}  Bg3 {[%clk 0:00:13]} 72. Kc4 {[%clk 0:01:03]}  Bh2 {[%clk 0:00:14]} 73. Kd5 {[%clk 0:01:04]}  Bg1 {[%clk 0:00:15]} 74. Kc4 {[%clk 0:01:05]}  Bf2 {[%clk 0:00:16]} 75. Kd5 {[%clk 0:01:06]}  Bg1 {[%clk 0:00:17]} 1/2-1/2


[Site "https://www.chess.com"]

[Event "Titled Tuesday Blitz May 9 Late 2023"]
[White "Simonian, Hrair"]
[Black "Ladan, Nicholas"]
[WhiteFideId "13302337"]
[BlackFideId "30918855"]
[WhiteElo "2447"]
[BlackElo "2167"]
[Result "1-0"]
[Round "10"]
[TimeControl "180+2"]
[Date "2023.05.09"]
[WhiteClock "0:00:44"]
[BlackClock "0:00:00"]

1. e4 {[%clk 0:03:00]}  e5 {[%clk 0:03:00]} 2. Nf3 {[%clk 0:02:59]}  Nc6 {[%clk 0:03:00]} 3. Bb5 {[%clk 0:03:00]}  a6 {[%clk 0:02:59]} 4. Ba4 {[%clk 0:02:59]}  g6 {[%clk 0:02:58]} 5. c3 {[%clk 0:02:53]}  Bg7 {[%clk 0:02:59]} 6. d4 {[%clk 0:02:51]}  b5 {[%clk 0:02:59]} 7. Bc2 {[%clk 0:02:49]}  exd4 {[%clk 0:02:56]} 8. cxd4 {[%clk 0:02:50]}  d6 {[%clk 0:02:49]} 9. O-O {[%clk 0:02:48]}  Nf6 {[%clk 0:02:49]} 10. h3 {[%clk 0:02:45]}  O-O {[%clk 0:02:49]} 11. Be3 {[%clk 0:02:44]}  Re8 {[%clk 0:02:44]} 12. Nbd2 {[%clk 0:02:43]}  Nb4 {[%clk 0:02:31]} 13. Rc1 {[%clk 0:02:39]}  Nxa2 {[%clk 0:02:18]} 14. Ra1 {[%clk 0:02:38]}  Nb4 {[%clk 0:02:18]} 15. e5 {[%clk 0:02:37]}  Nfd5 {[%clk 0:02:14]} 16. Be4 {[%clk 0:02:27]}  Bb7 {[%clk 0:02:00]} 17. Re1 {[%clk 0:01:44]}  c5 {[%clk 0:01:39]} 18. dxc5 {[%clk 0:01:39]}  Nxe3 {[%clk 0:01:30]} 19. Rxe3 {[%clk 0:01:34]}  Bxe4 {[%clk 0:01:26]} 20. Nxe4 {[%clk 0:01:35]}  dxc5 {[%clk 0:00:55]} 21. Nxc5 {[%clk 0:01:36]}  Qc7 {[%clk 0:00:39]} 22. Rc3 {[%clk 0:01:20]}  Rad8 {[%clk 0:00:39]} 23. Qb3 {[%clk 0:01:17]}  Nd5 {[%clk 0:00:33]} 24. Nxa6 {[%clk 0:01:14]}  Qb6 {[%clk 0:00:25]} 25. Rc5 {[%clk 0:00:50]}  b4 {[%clk 0:00:08]} 26. Rxd5 {[%clk 0:00:48]}  Rxd5 {[%clk 0:00:05]} 27. Qxd5 {[%clk 0:00:49]}  Bh6 {[%clk 0:00:01]} 28. Nc5 {[%clk 0:00:45]}  Rd8 {[%clk 0:00:01]} 29. Nd7 {[%clk 0:00:45]}  Qc7 {[%clk 0:00:00]} 30. Rd1 {[%clk 0:00:44]} 1-0


[Site "https://www.chess.com"]

[Event "Titled Tuesday Blitz May 9 Late 2023"]
[White "Komov, Roman"]
[Black "Rios Escobar, Adan"]
[WhiteFideId "24175714"]
[BlackFideId "3403645"]
[WhiteElo "2189"]
[BlackElo "2450"]
[Result "1-0"]
[Round "10"]
[TimeControl "180+2"]
[Date "2023.05.09"]
[WhiteClock "0:00:40"]
[BlackClock "0:00:03"]

1. Nf3 {[%clk 0:03:00]}  Nf6 {[%clk 0:02:57]} 2. c4 {[%clk 0:03:00]}  g6 {[%clk 0:02:57]} 3. d4 {[%clk 0:03:00]}  Bg7 {[%clk 0:02:57]} 4. Nc3 {[%clk 0:03:00]}  d5 {[%clk 0:02:57]} 5. Bg5 {[%clk 0:02:57]}  Ne4 {[%clk 0:02:48]} 6. Bf4 {[%clk 0:02:57]}  Nxc3 {[%clk 0:02:44]} 7. bxc3 {[%clk 0:02:58]}  c6 {[%clk 0:02:39]} 8. e3 {[%clk 0:02:57]}  O-O {[%clk 0:02:39]} 9. Bd3 {[%clk 0:02:54]}  Nd7 {[%clk 0:02:34]} 10. O-O {[%clk 0:02:54]}  Nf6 {[%clk 0:02:32]} 11. Be5 {[%clk 0:02:50]}  h6 {[%clk 0:02:29]} 12. Rb1 {[%clk 0:02:49]}  b6 {[%clk 0:02:28]} 13. h3 {[%clk 0:02:45]}  Be6 {[%clk 0:02:17]} 14. Qe2 {[%clk 0:02:43]}  Qd7 {[%clk 0:02:13]} 15. Rfd1 {[%clk 0:02:15]}  Rac8 {[%clk 0:02:10]} 16. a4 {[%clk 0:02:04]}  Rfd8 {[%clk 0:02:08]} 17. a5 {[%clk 0:02:02]}  bxa5 {[%clk 0:02:03]} 18. c5 {[%clk 0:02:01]}  Ne4 {[%clk 0:01:58]} 19. Qc2 {[%clk 0:01:57]}  Ng5 {[%clk 0:01:32]} 20. Nxg5 {[%clk 0:01:48]}  hxg5 {[%clk 0:01:32]} 21. Ba6 {[%clk 0:01:40]}  Bxh3 {[%clk 0:01:17]} 22. Bxc8 {[%clk 0:01:37]}  Rxc8 {[%clk 0:01:15]} 23. gxh3 {[%clk 0:01:36]}  Bxe5 {[%clk 0:01:07]} 24. dxe5 {[%clk 0:01:37]}  Qxh3 {[%clk 0:01:08]} 25. Qe2 {[%clk 0:01:29]}  Kg7 {[%clk 0:01:00]} 26. Qf1 {[%clk 0:01:28]}  Qf5 {[%clk 0:00:57]} 27. Qg2 {[%clk 0:01:13]}  Rh8 {[%clk 0:00:55]} 28. Ra1 {[%clk 0:01:09]}  Rh4 {[%clk 0:00:54]} 29. Rd4 {[%clk 0:01:08]}  g4 {[%clk 0:00:47]} 30. c4 {[%clk 0:00:58]}  e6 {[%clk 0:00:44]} 31. cxd5 {[%clk 0:00:57]}  exd5 {[%clk 0:00:44]} 32. Rad1 {[%clk 0:00:50]}  Kf8 {[%clk 0:00:27]} 33. e4 {[%clk 0:00:49]}  dxe4 {[%clk 0:00:18]} 34. Qxe4 {[%clk 0:00:48]}  Qh5 {[%clk 0:00:14]} 35. e6 {[%clk 0:00:45]}  fxe6 {[%clk 0:00:05]} 36. Rd8+ {[%clk 0:00:44]}  Kg7 {[%clk 0:00:05]} 37. R1d7+ {[%clk 0:00:43]}  Kf6 {[%clk 0:00:04]} 38. Rf8+ {[%clk 0:00:40]}  Kg5 {[%clk 0:00:03]} 39. Qf4# {[%clk 0:00:40]} 1-0


[Site "https://www.chess.com"]

[Event "Titled Tuesday Blitz May 9 Late 2023"]
[White "Nikologorskiy, Konstantin"]
[Black "Qiao, Cindy"]
[WhiteFideId "24111708"]
[BlackFideId "2620243"]
[WhiteElo "2273"]
[BlackElo "1777"]
[Result "0-1"]
[Round "10"]
[TimeControl "180+2"]
[Date "2023.05.09"]
[WhiteClock "0:00:13"]
[BlackClock "0:00:08"]

1. d4 {[%clk 0:02:56]}  d5 {[%clk 0:02:58]} 2. c4 {[%clk 0:02:57]}  e6 {[%clk 0:02:58]} 3. Nf3 {[%clk 0:02:58]}  Nf6 {[%clk 0:02:58]} 4. g3 {[%clk 0:02:59]}  Be7 {[%clk 0:02:58]} 5. Bg2 {[%clk 0:03:00]}  O-O {[%clk 0:02:59]} 6. O-O {[%clk 0:03:01]}  dxc4 {[%clk 0:03:00]} 7. Qc2 {[%clk 0:03:01]}  a6 {[%clk 0:03:00]} 8. Qxc4 {[%clk 0:03:02]}  b5 {[%clk 0:03:00]} 9. Qc2 {[%clk 0:03:03]}  Bb7 {[%clk 0:03:01]} 10. Bg5 {[%clk 0:03:03]}  Ra7 {[%clk 0:02:45]} 11. Nbd2 {[%clk 0:02:57]}  Nc6 {[%clk 0:02:32]} 12. Nb3 {[%clk 0:02:56]}  Nb4 {[%clk 0:02:28]} 13. Qc1 {[%clk 0:02:51]}  Qa8 {[%clk 0:02:22]} 14. a3 {[%clk 0:02:40]}  Nbd5 {[%clk 0:02:16]} 15. Nc5 {[%clk 0:02:41]}  Bxc5 {[%clk 0:02:06]} 16. Qxc5 {[%clk 0:02:42]}  h6 {[%clk 0:02:03]} 17. Bd2 {[%clk 0:02:38]}  a5 {[%clk 0:01:46]} 18. Ne5 {[%clk 0:02:33]}  b4 {[%clk 0:01:13]} 19. axb4 {[%clk 0:02:27]}  a4 {[%clk 0:01:10]} 20. Rfe1 {[%clk 0:02:08]}  Rd8 {[%clk 0:00:54]} 21. e4 {[%clk 0:02:05]}  Nb6 {[%clk 0:00:49]} 22. Qe7 {[%clk 0:02:05]}  Rf8 {[%clk 0:00:47]} 23. Bxh6 {[%clk 0:02:04]}  Nc8 {[%clk 0:00:45]} 24. Qc5 {[%clk 0:01:46]}  gxh6 {[%clk 0:00:43]} 25. Qc1 {[%clk 0:01:44]}  Kg7 {[%clk 0:00:35]} 26. Qf4 {[%clk 0:01:39]}  Nd6 {[%clk 0:00:31]} 27. Rac1 {[%clk 0:01:23]}  Bxe4 {[%clk 0:00:27]} 28. Bxe4 {[%clk 0:01:23]}  Ndxe4 {[%clk 0:00:28]} 29. Ng4 {[%clk 0:01:22]}  Nxg4 {[%clk 0:00:20]} 30. Qxg4+ {[%clk 0:01:23]}  Ng5 {[%clk 0:00:20]} 31. h4 {[%clk 0:01:24]}  f5 {[%clk 0:00:19]} 32. Qe2 {[%clk 0:00:58]}  Nf3+ {[%clk 0:00:19]} 33. Kf1 {[%clk 0:00:59]}  Nxe1 {[%clk 0:00:20]} 34. Kxe1 {[%clk 0:00:59]}  Qe4 {[%clk 0:00:18]} 35. Qxe4 {[%clk 0:00:54]}  fxe4 {[%clk 0:00:19]} 36. Rc6 {[%clk 0:00:55]}  Rb7 {[%clk 0:00:19]} 37. Rc4 {[%clk 0:00:39]}  Rd8 {[%clk 0:00:16]} 38. Ke2 {[%clk 0:00:38]}  Rdb8 {[%clk 0:00:17]} 39. Ke3 {[%clk 0:00:38]}  Rxb4 {[%clk 0:00:17]} 40. Rxc7+ {[%clk 0:00:39]}  Kf6 {[%clk 0:00:16]} 41. g4 {[%clk 0:00:35]}  Rxb2 {[%clk 0:00:16]} 42. Ra7 {[%clk 0:00:18]}  R8b3+ {[%clk 0:00:15]} 43. Kxe4 {[%clk 0:00:18]}  Re2+ {[%clk 0:00:16]} 44. Kf4 {[%clk 0:00:18]}  Rxf2+ {[%clk 0:00:17]} 45. Ke4 {[%clk 0:00:19]}  Rg2 {[%clk 0:00:15]} 46. Kf4 {[%clk 0:00:17]}  a3 {[%clk 0:00:15]} 47. Ra6 {[%clk 0:00:17]}  Rf2+ {[%clk 0:00:14]} 48. Ke4 {[%clk 0:00:17]}  Rbf3 {[%clk 0:00:13]} 49. d5 {[%clk 0:00:17]}  Rf4+ {[%clk 0:00:12]} 50. Ke3 {[%clk 0:00:18]}  R2f3+ {[%clk 0:00:12]} 51. Ke2 {[%clk 0:00:18]}  Rf2+ {[%clk 0:00:12]} 52. Ke3 {[%clk 0:00:19]}  a2 {[%clk 0:00:09]} 53. Rxe6+ {[%clk 0:00:14]}  Kf7 {[%clk 0:00:10]} 54. Ra6 {[%clk 0:00:15]}  R4f3+ {[%clk 0:00:09]} 55. Ke4 {[%clk 0:00:16]}  Rb3 {[%clk 0:00:08]} 56. Ra7+ {[%clk 0:00:12]}  Ke8 {[%clk 0:00:06]} 57. Ra8+ {[%clk 0:00:13]}  Kd7 {[%clk 0:00:06]} 58. Ra7+ {[%clk 0:00:14]}  Kc8 {[%clk 0:00:07]} 59. d6 {[%clk 0:00:14]}  Rd2 {[%clk 0:00:05]} 60. Ke5 {[%clk 0:00:12]}  Rb1 {[%clk 0:00:04]} 61. d7+ {[%clk 0:00:11]}  Kd8 {[%clk 0:00:04]} 62. Ra8+ {[%clk 0:00:03]}  Kxd7 {[%clk 0:00:03]} 63. Ra7+ {[%clk 0:00:03]}  Kc6 {[%clk 0:00:03]} 64. Ra3 {[%clk 0:00:04]}  a1=Q+ {[%clk 0:00:03]} 65. Rc3+ {[%clk 0:00:04]}  Qxc3+ {[%clk 0:00:03]} 66. Kf5 {[%clk 0:00:05]}  Rd5+ {[%clk 0:00:02]} 67. Kg6 {[%clk 0:00:06]}  Qd3+ {[%clk 0:00:02]} 68. Kxh6 {[%clk 0:00:06]}  Rd6+ {[%clk 0:00:03]} 69. Kh5 {[%clk 0:00:07]}  Rd7 {[%clk 0:00:04]} 70. g5 {[%clk 0:00:08]}  Qd5 {[%clk 0:00:04]} 71. Kg4 {[%clk 0:00:08]}  Qd4+ {[%clk 0:00:05]} 72. Kh5 {[%clk 0:00:09]}  Rb4 {[%clk 0:00:05]} 73. Kg6 {[%clk 0:00:10]}  Qxh4 {[%clk 0:00:06]} 74. Kf6 {[%clk 0:00:10]}  Rd5 {[%clk 0:00:06]} 75. Ke6 {[%clk 0:00:11]}  Qxg5 {[%clk 0:00:07]} 76. Kf7 {[%clk 0:00:11]}  Qf5+ {[%clk 0:00:07]} 77. Ke7 {[%clk 0:00:12]}  Rd7+ {[%clk 0:00:07]} 78. Ke8 {[%clk 0:00:13]}  Qf7# {[%clk 0:00:08]} 0-1


[Site "https://www.chess.com"]

[Event "Titled Tuesday Blitz May 9 Late 2023"]
[White "Sreyas Payyappat"]
[Black "Bruedigam, Martin"]
[WhiteFideId "46674969"]
[BlackFideId "24608033"]
[WhiteElo "2043"]
[BlackElo "2331"]
[Result "0-1"]
[Round "10"]
[TimeControl "180+2"]
[Date "2023.05.09"]
[WhiteClock "0:00:01"]
[BlackClock "0:00:56"]

1. e4 {[%clk 0:03:00]}  c6 {[%clk 0:03:00]} 2. d4 {[%clk 0:03:00]}  d5 {[%clk 0:03:00]} 3. Nc3 {[%clk 0:03:01]}  dxe4 {[%clk 0:03:00]} 4. Nxe4 {[%clk 0:03:02]}  Bf5 {[%clk 0:03:00]} 5. Ng3 {[%clk 0:03:00]}  Bg6 {[%clk 0:03:01]} 6. Nf3 {[%clk 0:03:01]}  Nd7 {[%clk 0:03:01]} 7. h4 {[%clk 0:03:01]}  h6 {[%clk 0:03:01]} 8. Bd3 {[%clk 0:02:59]}  Bxd3 {[%clk 0:03:01]} 9. Qxd3 {[%clk 0:03:00]}  Ngf6 {[%clk 0:03:00]} 10. Bf4 {[%clk 0:02:57]}  Qa5+ {[%clk 0:02:44]} 11. Bd2 {[%clk 0:02:51]}  Qc7 {[%clk 0:02:45]} 12. O-O-O {[%clk 0:02:45]}  e6 {[%clk 0:02:45]} 13. Rde1 {[%clk 0:02:41]}  Be7 {[%clk 0:02:42]} 14. Ne2 {[%clk 0:02:22]}  Nd5 {[%clk 0:02:36]} 15. a3 {[%clk 0:02:02]}  c5 {[%clk 0:02:28]} 16. c4 {[%clk 0:01:58]}  cxd4 {[%clk 0:02:26]} 17. Nexd4 {[%clk 0:01:55]}  O-O {[%clk 0:02:12]} 18. Kb1 {[%clk 0:01:53]}  N5b6 {[%clk 0:02:08]} 19. Ng5 {[%clk 0:01:33]}  Nf6 {[%clk 0:02:00]} 20. Bc3 {[%clk 0:00:48]}  Qxc4 {[%clk 0:01:53]} 21. Qc2 {[%clk 0:00:46]}  Rac8 {[%clk 0:01:42]} 22. Re3 {[%clk 0:00:25]}  Nbd5 {[%clk 0:01:31]} 23. Rf3 {[%clk 0:00:24]}  Bxa3 {[%clk 0:01:08]} 24. bxa3 {[%clk 0:00:18]}  Nxc3+ {[%clk 0:01:07]} 25. Kc1 {[%clk 0:00:09]}  Ne2+ {[%clk 0:01:00]} 26. Kb1 {[%clk 0:00:01]}  Nxd4 {[%clk 0:00:56]} 0-1


[Site "https://www.chess.com"]

[Event "Titled Tuesday Blitz May 9 Late 2023"]
[White "Erzhanov, Arman"]
[Black "Pasti, Aron"]
[WhiteFideId "4138821"]
[BlackFideId "785857"]
[WhiteElo "2138"]
[BlackElo "2173"]
[Result "1-0"]
[Round "10"]
[TimeControl "180+2"]
[Date "2023.05.09"]
[WhiteClock "0:00:17"]
[BlackClock "0:00:10"]

1. e4 {[%clk 0:03:00]}  c5 {[%clk 0:02:53]} 2. Nf3 {[%clk 0:02:59]}  e6 {[%clk 0:02:50]} 3. b3 {[%clk 0:02:59]}  Nc6 {[%clk 0:02:49]} 4. Bb5 {[%clk 0:02:58]}  Nd4 {[%clk 0:02:48]} 5. Nxd4 {[%clk 0:02:58]}  cxd4 {[%clk 0:02:49]} 6. O-O {[%clk 0:02:58]}  Nf6 {[%clk 0:02:48]} 7. Bd3 {[%clk 0:02:57]}  d5 {[%clk 0:02:47]} 8. e5 {[%clk 0:02:54]}  Nd7 {[%clk 0:02:47]} 9. f4 {[%clk 0:02:54]}  Nc5 {[%clk 0:02:48]} 10. Be2 {[%clk 0:02:53]}  Ne4 {[%clk 0:02:37]} 11. Bb2 {[%clk 0:02:49]}  Bc5 {[%clk 0:02:13]} 12. d3 {[%clk 0:02:47]}  Nc3 {[%clk 0:02:13]} 13. Bxc3 {[%clk 0:02:46]}  dxc3+ {[%clk 0:02:12]} 14. d4 {[%clk 0:02:46]}  Bb4 {[%clk 0:02:08]} 15. a3 {[%clk 0:02:47]}  Qa5 {[%clk 0:02:02]} 16. Rf3 {[%clk 0:02:37]}  Bd7 {[%clk 0:01:58]} 17. Rg3 {[%clk 0:02:17]}  O-O {[%clk 0:01:56]} 18. Bd3 {[%clk 0:02:10]}  f6 {[%clk 0:00:59]} 19. Qg4 {[%clk 0:01:42]}  Rf7 {[%clk 0:00:57]} 20. exf6 {[%clk 0:01:38]}  e5 {[%clk 0:00:57]} 21. Bxh7+ {[%clk 0:00:49]}  Kxh7 {[%clk 0:00:57]} 22. Qg6+ {[%clk 0:00:46]}  Kg8 {[%clk 0:00:55]} 23. fxe5 {[%clk 0:00:46]}  Qb6 {[%clk 0:00:44]} 24. Qd3 {[%clk 0:00:27]}  Bb5 {[%clk 0:00:30]} 25. Qe3 {[%clk 0:00:27]}  Qa5 {[%clk 0:00:24]} 26. Qh6 {[%clk 0:00:20]}  Qb6 {[%clk 0:00:10]} 27. Rxg7+ {[%clk 0:00:18]}  Kf8 {[%clk 0:00:10]} 28. Qh8# {[%clk 0:00:17]} 1-0


[Site "https://www.chess.com"]